[Event "*** Titled Tuesday Blitz"]
[Site "Chess.com"]
[Date "2020.12.29"]
[Round "5"]
[White "theturtlemoves"]
[Black "Matols"]
[Result "1-0"]
[WhiteElo "2355"]
[BlackElo "2261"]
[TimeControl "180+1"]
[EndTime "10:54:29 PST"]
[Termination "theturtlemoves won by resignation"]

1. e4 {[%clk 0:03:00.9]} 1... e6 {[%clk 0:02:59.6]} 2. d4 {[%clk 0:03:00.6]}
2... d5 {[%clk 0:02:59.9]} 3. Nc3 {[%clk 0:03:01.1]} 3... Nf6 {[%clk 0:02:59.6]}
4. e5 {[%clk 0:03:01.3]} 4... Nfd7 {[%clk 0:03:00.1]} 5. f4 {[%clk 0:03:01.9]}
5... c5 {[%clk 0:03:00.3]} 6. Nf3 {[%clk 0:03:02.5]} 6... Nc6 {[%clk 0:03:00.7]}
7. Be3 {[%clk 0:03:02.9]} 7... cxd4 {[%clk 0:03:01.2]} 8. Nxd4 {[%clk
0:03:02.2]} 8... Bc5 {[%clk 0:03:01.7]} 9. Qd2 {[%clk 0:02:54.8]} 9... O-O
{[%clk 0:03:01.8]} 10. O-O-O {[%clk 0:02:31.9]} 10... a6 {[%clk 0:03:02]} 11.
Qf2 {[%clk 0:02:15.7]} 11... Bxd4 {[%clk 0:03:00.5]} 12. Bxd4 {[%clk 0:02:16.6]}
12... b5 {[%clk 0:03:00.8]} 13. Bd3 {[%clk 0:01:53.3]} 13... b4 {[%clk
0:02:58.5]} 14. Ne2 {[%clk 0:01:52.9]} 14... a5 {[%clk 0:02:56.4]} 15. Kb1
{[%clk 0:01:52.5]} 15... Ba6 {[%clk 0:02:54.8]} 16. f5 {[%clk 0:01:45.7]} 16...
Ndxe5 {[%clk 0:02:39.7]} 17. Bxa6 {[%clk 0:01:30.8]} 17... Rxa6 {[%clk 0:02:39]}
18. Ng3 {[%clk 0:01:30.8]} 18... a4 {[%clk 0:02:30.7]} 19. Bc5 {[%clk
0:01:23.3]} 19... Re8 {[%clk 0:02:28.7]} 20. Rhf1 {[%clk 0:01:21.1]} 20... b3
{[%clk 0:02:13.5]} 21. fxe6 {[%clk 0:01:17.6]} 21... fxe6 {[%clk 0:02:12.7]} 22.
cxb3 {[%clk 0:01:09.1]} 22... axb3 {[%clk 0:02:12.1]} 23. a3 {[%clk 0:01:09.4]}
23... Ra8 {[%clk 0:01:58.6]} 24. Ne4 {[%clk 0:01:01.1]} 24... Qa5 {[%clk
0:01:44]} 25. Ng5 {[%clk 0:00:32.6]} 25... Qa4 {[%clk 0:01:26.1]} 26. Nxe6
{[%clk 0:00:26.1]} 26... Qe4+ {[%clk 0:01:23.7]} 27. Ka1 {[%clk 0:00:26]} 27...
Qc2 {[%clk 0:00:52.1]} 28. Nc7 {[%clk 0:00:22.6]} 28... Nd3 {[%clk 0:00:28.5]}
29. Qf7+ {[%clk 0:00:20.6]} 29... Kh8 {[%clk 0:00:28.2]} 30. Rxd3 {[%clk
0:00:20.1]} 30... Qxd3 {[%clk 0:00:22.9]} 31. Nxe8 {[%clk 0:00:19.2]} 31...
Rxa3+ {[%clk 0:00:12.8]} 32. Bxa3 {[%clk 0:00:17.6]} 1-0

[Event "*** Titled Tuesday Blitz"]
[Site "Chess.com"]
[Date "2020.12.29"]
[Round "5"]
[White "francyIM"]
[Black "Nadeev_Sergey"]
[Result "1/2-1/2"]
[WhiteElo "2693"]
[BlackElo "2473"]
[TimeControl "180+1"]
[EndTime "10:54:31 PST"]
[Termination "Game drawn by repetition"]

1. d4 {[%clk 0:02:41.7]} 1... d5 {[%clk 0:02:59.8]} 2. c3 {[%clk 0:02:41.5]}
2... Nf6 {[%clk 0:02:59.5]} 3. Bf4 {[%clk 0:02:42.1]} 3... c6 {[%clk 0:02:48.1]}
4. e3 {[%clk 0:02:42.1]} 4... Qb6 {[%clk 0:02:48]} 5. Qc1 {[%clk 0:02:41.9]}
5... Bf5 {[%clk 0:02:44.5]} 6. Nd2 {[%clk 0:02:41.8]} 6... Nbd7 {[%clk
0:02:43.8]} 7. Ngf3 {[%clk 0:02:41.9]} 7... e6 {[%clk 0:02:43.8]} 8. Be2 {[%clk
0:02:41.9]} 8... Be7 {[%clk 0:02:41.4]} 9. O-O {[%clk 0:02:41.7]} 9... h6 {[%clk
0:02:39.2]} 10. h3 {[%clk 0:02:41.1]} 10... O-O {[%clk 0:02:36.3]} 11. c4 {[%clk
0:02:39]} 11... Rfe8 {[%clk 0:02:34.1]} 12. c5 {[%clk 0:02:37]} 12... Qd8 {[%clk
0:02:32.8]} 13. b4 {[%clk 0:02:36.8]} 13... Ne4 {[%clk 0:02:32.4]} 14. a4 {[%clk
0:02:35.2]} 14... a6 {[%clk 0:02:18.2]} 15. b5 {[%clk 0:02:20.2]} 15... axb5
{[%clk 0:02:08.4]} 16. axb5 {[%clk 0:02:21.1]} 16... Rxa1 {[%clk 0:02:00.6]} 17.
Qxa1 {[%clk 0:02:22]} 17... Nxd2 {[%clk 0:01:54.5]} 18. Nxd2 {[%clk 0:02:21.3]}
18... e5 {[%clk 0:01:49.6]} 19. dxe5 {[%clk 0:02:14.5]} 19... Nxc5 {[%clk
0:01:47]} 20. bxc6 {[%clk 0:02:13.3]} 20... bxc6 {[%clk 0:01:46.5]} 21. Rc1
{[%clk 0:02:12.1]} 21... Qa8 {[%clk 0:01:41.4]} 22. Qc3 {[%clk 0:02:05.6]} 22...
Rc8 {[%clk 0:01:35]} 23. Bg3 {[%clk 0:02:03.6]} 23... Qb7 {[%clk 0:01:26.3]} 24.
f3 {[%clk 0:01:50.6]} 24... Bd7 {[%clk 0:01:23.2]} 25. Bf2 {[%clk 0:01:48.5]}
25... Na4 {[%clk 0:01:19.4]} 26. Qd3 {[%clk 0:01:46.5]} 26... c5 {[%clk
0:01:15]} 27. Rb1 {[%clk 0:01:40.4]} 27... Qa8 {[%clk 0:01:07]} 28. Qc2 {[%clk
0:01:33.3]} 28... Rb8 {[%clk 0:00:50.2]} 29. Rxb8+ {[%clk 0:01:27.7]} 29... Qxb8
{[%clk 0:00:51.1]} 30. e4 {[%clk 0:01:27.6]} 30... Qxe5 {[%clk 0:00:45.4]} 31.
Qd3 {[%clk 0:01:19.3]} 31... Nc3 {[%clk 0:00:39]} 32. Bf1 {[%clk 0:01:14.5]}
32... Bb5 {[%clk 0:00:36.5]} 33. Qc2 {[%clk 0:01:11.3]} 33... Bxf1 {[%clk
0:00:36.2]} 34. Kxf1 {[%clk 0:01:11.4]} 34... dxe4 {[%clk 0:00:33.8]} 35. Nxe4
{[%clk 0:01:07.8]} 35... Nxe4 {[%clk 0:00:32.3]} 36. fxe4 {[%clk 0:01:07.6]}
36... Bd6 {[%clk 0:00:22.5]} 37. Qd3 {[%clk 0:01:01]} 37... Be7 {[%clk
0:00:20.4]} 38. Ke2 {[%clk 0:00:57.7]} 38... f5 {[%clk 0:00:19.8]} 39. Qd5+
{[%clk 0:00:57.2]} 39... Qxd5 {[%clk 0:00:20.2]} 40. exd5 {[%clk 0:00:58.1]}
40... c4 {[%clk 0:00:19.6]} 41. Bd4 {[%clk 0:00:58.1]} 41... Bb4 {[%clk
0:00:19.1]} 42. Be5 {[%clk 0:00:56]} 42... Kf7 {[%clk 0:00:16.7]} 43. Ke3 {[%clk
0:00:55.4]} 43... Bc5+ {[%clk 0:00:17.2]} 44. Kd2 {[%clk 0:00:52.6]} 44... Bb4+
{[%clk 0:00:17.1]} 45. Ke3 {[%clk 0:00:52.5]} 45... Bc5+ {[%clk 0:00:17.3]} 46.
Kd2 {[%clk 0:00:49.2]} 46... Bb4+ {[%clk 0:00:14.9]} 47. Ke3 {[%clk 0:00:46.2]}
1/2-1/2

[Event "*** Titled Tuesday Blitz"]
[Site "Chess.com"]
[Date "2020.12.29"]
[Round "5"]
[White "vinniethepooh"]
[Black "NiranjanNavalgund"]
[Result "1-0"]
[WhiteElo "2701"]
[BlackElo "2482"]
[TimeControl "180+1"]
[EndTime "10:54:31 PST"]
[Termination "vinniethepooh won by resignation"]

1. d4 {[%clk 0:03:00.9]} 1... Nf6 {[%clk 0:02:59.6]} 2. c4 {[%clk 0:03:01.6]}
2... e5 {[%clk 0:02:58]} 3. Nc3 {[%clk 0:03:02.2]} 3... exd4 {[%clk 0:02:57.8]}
4. Qxd4 {[%clk 0:03:03.1]} 4... Nc6 {[%clk 0:02:57.9]} 5. Qd1 {[%clk 0:03:02.6]}
5... Bc5 {[%clk 0:02:57.6]} 6. e3 {[%clk 0:03:01.3]} 6... a5 {[%clk 0:02:57]} 7.
g3 {[%clk 0:03:01.5]} 7... d6 {[%clk 0:02:56.9]} 8. Bg2 {[%clk 0:03:01.6]} 8...
h5 {[%clk 0:02:57.4]} 9. h3 {[%clk 0:02:57.6]} 9... Be6 {[%clk 0:02:56.2]} 10.
b3 {[%clk 0:02:53.1]} 10... Bb4 {[%clk 0:02:53.1]} 11. Bd2 {[%clk 0:02:49.1]}
11... d5 {[%clk 0:02:50.8]} 12. cxd5 {[%clk 0:02:32]} 12... Nxd5 {[%clk
0:02:48.7]} 13. Nge2 {[%clk 0:02:32.2]} 13... h4 {[%clk 0:02:35.2]} 14. g4
{[%clk 0:02:29.1]} 14... Ne5 {[%clk 0:02:20.4]} 15. O-O {[%clk 0:02:19.3]} 15...
c6 {[%clk 0:01:33.4]} 16. f4 {[%clk 0:02:10.1]} 16... Nxg4 {[%clk 0:01:22.2]}
17. hxg4 {[%clk 0:01:57.7]} 17... Bxg4 {[%clk 0:01:21.9]} 18. Nxd5 {[%clk
0:01:46.4]} 18... cxd5 {[%clk 0:01:19.7]} 19. Bxb4 {[%clk 0:01:30.9]} 19... axb4
{[%clk 0:01:18.4]} 20. Bf3 {[%clk 0:01:26.3]} 20... Qd7 {[%clk 0:01:14.1]} 21.
Nd4 {[%clk 0:01:20.9]} 21... Bh3 {[%clk 0:01:10.9]} 22. Rf2 {[%clk 0:01:17.6]}
22... Ra6 {[%clk 0:01:10.9]} 23. Kh2 {[%clk 0:01:06.4]} 23... Rg6 {[%clk
0:01:09.3]} 24. Qd3 {[%clk 0:00:58.9]} 24... O-O {[%clk 0:00:55.7]} 25. Rg1
{[%clk 0:00:54.2]} 25... Rxg1 {[%clk 0:00:53.3]} 26. Kxg1 {[%clk 0:00:55.1]}
26... Rc8 {[%clk 0:00:53.9]} 27. Kh2 {[%clk 0:00:52.9]} 27... Rc5 {[%clk
0:00:50.3]} 28. Rc2 {[%clk 0:00:50.5]} 28... Rxc2+ {[%clk 0:00:47]} 29. Qxc2
{[%clk 0:00:50.4]} 29... Bf1 {[%clk 0:00:45.8]} 30. Qf5 {[%clk 0:00:41.4]} 30...
Qe7 {[%clk 0:00:39.2]} 31. Bxd5 {[%clk 0:00:34.6]} 31... h3 {[%clk 0:00:35.5]}
32. Nf3 {[%clk 0:00:24.3]} 32... Kh8 {[%clk 0:00:22.7]} 33. Ng5 {[%clk
0:00:20.6]} 33... g6 {[%clk 0:00:21.3]} 34. Qe5+ {[%clk 0:00:15.1]} 34... Qxe5
{[%clk 0:00:19.8]} 35. Nxf7+ {[%clk 0:00:15.4]} 35... Kg7 {[%clk 0:00:19.6]} 36.
Nxe5 {[%clk 0:00:15.9]} 1-0

[Event "*** Titled Tuesday Blitz"]
[Site "Chess.com"]
[Date "2020.12.29"]
[Round "5"]
[White "ZverevLev"]
[Black "Chess_Boxer123"]
[Result "0-1"]
[WhiteElo "2388"]
[BlackElo "2562"]
[TimeControl "180+1"]
[EndTime "10:54:31 PST"]
[Termination "Chess_Boxer123 won by checkmate"]

1. e4 {[%clk 0:03:00.9]} 1... c6 {[%clk 0:02:55.8]} 2. d4 {[%clk 0:02:56.6]}
2... d5 {[%clk 0:02:55.1]} 3. e5 {[%clk 0:02:54.8]} 3... c5 {[%clk 0:02:53.2]}
4. dxc5 {[%clk 0:02:52.1]} 4... e6 {[%clk 0:02:50]} 5. a3 {[%clk 0:02:51]} 5...
Bxc5 {[%clk 0:02:49.4]} 6. b4 {[%clk 0:02:49.9]} 6... Bb6 {[%clk 0:02:49.6]} 7.
Bb2 {[%clk 0:02:48.1]} 7... Ne7 {[%clk 0:02:49.9]} 8. Nf3 {[%clk 0:02:47.3]}
8... Nbc6 {[%clk 0:02:49]} 9. Bd3 {[%clk 0:02:46.7]} 9... O-O {[%clk 0:02:48]}
10. b5 {[%clk 0:02:36]} 10... Na5 {[%clk 0:02:43.7]} 11. Bxh7+ {[%clk
0:02:20.7]} 11... Kxh7 {[%clk 0:02:18.8]} 12. Ng5+ {[%clk 0:02:19.4]} 12... Kg6
{[%clk 0:02:19.3]} 13. Qg4 {[%clk 0:02:16.8]} 13... f5 {[%clk 0:02:18.4]} 14.
exf6 {[%clk 0:02:15.8]} 14... e5 {[%clk 0:02:18.6]} 15. Ne6+ {[%clk 0:01:44.9]}
15... Kxf6 {[%clk 0:02:17.9]} 16. Bxe5+ {[%clk 0:01:44.2]} 16... Kxe5 {[%clk
0:02:14]} 17. Qe2+ {[%clk 0:01:43.7]} 17... Kd6 {[%clk 0:02:09.2]} 18. Nxd8
{[%clk 0:01:42.7]} 18... Bxf2+ {[%clk 0:02:02.4]} 19. Kd1 {[%clk 0:01:38.4]}
19... Nc4 {[%clk 0:01:59.9]} 20. Nd2 {[%clk 0:01:31.4]} 20... Bg4 {[%clk
0:00:59.6]} 21. Nxc4+ {[%clk 0:01:28.3]} 21... dxc4 {[%clk 0:00:58.1]} 22. Qxg4
{[%clk 0:01:27.6]} 22... Raxd8 {[%clk 0:00:58.4]} 23. Ke2 {[%clk 0:01:24.2]}
23... Nd5 {[%clk 0:00:54.7]} 24. Qxg7 {[%clk 0:01:05.3]} 24... Rde8+ {[%clk
0:00:37.7]} 25. Kd2 {[%clk 0:01:01.1]} 25... Be3+ {[%clk 0:00:20.4]} 26. Kd1
{[%clk 0:00:56.9]} 26... Rf2 {[%clk 0:00:20.4]} 27. Qg6+ {[%clk 0:00:35.7]}
27... Re6 {[%clk 0:00:18.9]} 28. Qg3+ {[%clk 0:00:34.1]} 28... Kc5 {[%clk
0:00:17.5]} 29. Qxf2 {[%clk 0:00:20.1]} 29... Bxf2 {[%clk 0:00:12.3]} 30. c3
{[%clk 0:00:17.7]} 30... Nxc3+ {[%clk 0:00:11.1]} 31. Kc2 {[%clk 0:00:17.5]}
31... Re2+ {[%clk 0:00:11.5]} 32. Kc1 {[%clk 0:00:15.1]} 32... Be3# {[%clk
0:00:11.6]} 0-1

[Event "*** Titled Tuesday Blitz"]
[Site "Chess.com"]
[Date "2020.12.29"]
[Round "5"]
[White "saikrishnaReturns"]
[Black "onnoelgersma"]
[Result "1-0"]
[WhiteElo "2643"]
[BlackElo "2428"]
[TimeControl "180+1"]
[EndTime "10:54:33 PST"]
[Termination "saikrishnaReturns won on time"]

1. e4 {[%clk 0:03:00.9]} 1... c5 {[%clk 0:02:45.3]} 2. Nf3 {[%clk 0:03:00.2]}
2... e6 {[%clk 0:02:42.1]} 3. Nc3 {[%clk 0:03:01.1]} 3... Nc6 {[%clk 0:02:40.3]}
4. d4 {[%clk 0:03:01]} 4... cxd4 {[%clk 0:02:41.2]} 5. Nxd4 {[%clk 0:03:01.4]}
5... a6 {[%clk 0:02:41.7]} 6. Nxc6 {[%clk 0:03:00.6]} 6... bxc6 {[%clk
0:02:42.2]} 7. Bd3 {[%clk 0:03:01.3]} 7... Qc7 {[%clk 0:02:42.9]} 8. O-O {[%clk
0:03:01.6]} 8... Nf6 {[%clk 0:02:36.8]} 9. f4 {[%clk 0:02:54.5]} 9... d5 {[%clk
0:02:31.1]} 10. e5 {[%clk 0:02:53.8]} 10... Nd7 {[%clk 0:02:30.3]} 11. Ne2
{[%clk 0:02:35.8]} 11... g6 {[%clk 0:02:14.9]} 12. c4 {[%clk 0:02:19]} 12...
Bc5+ {[%clk 0:01:45.9]} 13. Kh1 {[%clk 0:02:18.8]} 13... O-O {[%clk 0:01:42.9]}
14. Ng3 {[%clk 0:02:17.6]} 14... Rb8 {[%clk 0:01:35.8]} 15. Qg4 {[%clk
0:02:06.9]} 15... Rb4 {[%clk 0:00:56.8]} 16. b3 {[%clk 0:01:50.9]} 16... f5
{[%clk 0:00:52.5]} 17. Qg5 {[%clk 0:01:41.4]} 17... Qd8 {[%clk 0:00:30.6]} 18.
Qh6 {[%clk 0:01:40.3]} 18... Rb8 {[%clk 0:00:25.6]} 19. Bd2 {[%clk 0:01:13.5]}
19... Bd4 {[%clk 0:00:20.1]} 20. Rac1 {[%clk 0:01:12]} 20... Nc5 {[%clk
0:00:19.9]} 21. Bb1 {[%clk 0:01:10.4]} 21... Ne4 {[%clk 0:00:19.8]} 22. Nxe4
{[%clk 0:01:09]} 22... dxe4 {[%clk 0:00:20.7]} 23. Rfd1 {[%clk 0:00:58.6]} 23...
c5 {[%clk 0:00:19.5]} 24. Be3 {[%clk 0:00:55.5]} 24... Qb6 {[%clk 0:00:19.5]}
25. Bxd4 {[%clk 0:00:53]} 25... cxd4 {[%clk 0:00:20.4]} 26. c5 {[%clk
0:00:53.6]} 26... Qb4 {[%clk 0:00:19.3]} 27. Rc4 {[%clk 0:00:53.6]} 27... Qa3
{[%clk 0:00:12.6]} 28. Rcxd4 {[%clk 0:00:53.6]} 28... Qxc5 {[%clk 0:00:11.6]}
29. Rd8 {[%clk 0:00:53.5]} 29... Bb7 {[%clk 0:00:10.8]} 30. R8d7 {[%clk
0:00:53.8]} 30... Rf7 {[%clk 0:00:03.6]} 31. Rxf7 {[%clk 0:00:53.8]} 31... Kxf7
{[%clk 0:00:04.5]} 32. Qxh7+ {[%clk 0:00:54.3]} 32... Ke8 {[%clk 0:00:04.4]} 33.
Qg8+ {[%clk 0:00:52]} 33... Qf8 {[%clk 0:00:04.3]} 34. Qxe6+ {[%clk 0:00:50.8]}
34... Qe7 {[%clk 0:00:04.5]} 35. Qxg6+ {[%clk 0:00:50.9]} 35... Qf7 {[%clk
0:00:05.1]} 36. Qd6 {[%clk 0:00:45.4]} 36... Rc8 {[%clk 0:00:04.5]} 37. e6
{[%clk 0:00:42.3]} 37... Qe7 {[%clk 0:00:04.6]} 38. Qe5 {[%clk 0:00:39.5]} 38...
e3 {[%clk 0:00:02.6]} 39. Bxf5 {[%clk 0:00:33.1]} 1-0

[Event "*** Titled Tuesday Blitz"]
[Site "Chess.com"]
[Date "2020.12.29"]
[Round "5"]
[White "AlessiaSanteramo"]
[Black "MustafaY"]
[Result "1-0"]
[WhiteElo "2138"]
[BlackElo "2326"]
[TimeControl "180+1"]
[EndTime "10:54:33 PST"]
[Termination "AlessiaSanteramo won by resignation"]

1. e4 {[%clk 0:03:00.9]} 1... c5 {[%clk 0:02:59]} 2. Nf3 {[%clk 0:02:59.8]} 2...
d6 {[%clk 0:02:58.8]} 3. Bb5+ {[%clk 0:02:45.4]} 3... Bd7 {[%clk 0:02:58]} 4.
Bxd7+ {[%clk 0:02:44.2]} 4... Qxd7 {[%clk 0:02:58.6]} 5. O-O {[%clk 0:02:39.4]}
5... Nc6 {[%clk 0:02:55.9]} 6. c3 {[%clk 0:02:30.3]} 6... Nf6 {[%clk 0:02:54.8]}
7. Qe2 {[%clk 0:02:25.3]} 7... e6 {[%clk 0:02:51.7]} 8. Rd1 {[%clk 0:02:25.1]}
8... Be7 {[%clk 0:02:45.6]} 9. d4 {[%clk 0:02:25.2]} 9... cxd4 {[%clk
0:02:46.3]} 10. cxd4 {[%clk 0:02:25.5]} 10... d5 {[%clk 0:02:46.6]} 11. e5
{[%clk 0:02:25.7]} 11... Ne4 {[%clk 0:02:46.5]} 12. Be3 {[%clk 0:02:19.8]} 12...
O-O {[%clk 0:02:43.4]} 13. Ne1 {[%clk 0:02:19.8]} 13... f6 {[%clk 0:02:36.8]}
14. f3 {[%clk 0:02:19.6]} 14... Ng5 {[%clk 0:02:36.2]} 15. Bxg5 {[%clk 0:02:17]}
15... fxg5 {[%clk 0:02:34.7]} 16. Nc3 {[%clk 0:02:14.8]} 16... a6 {[%clk
0:02:26.7]} 17. a3 {[%clk 0:02:14.3]} 17... Rac8 {[%clk 0:02:26.4]} 18. Na4
{[%clk 0:02:08.4]} 18... Qd8 {[%clk 0:02:05.4]} 19. b4 {[%clk 0:02:02.2]} 19...
Rf4 {[%clk 0:01:55.8]} 20. Qe3 {[%clk 0:01:53.5]} 20... b6 {[%clk 0:01:35.2]}
21. Rac1 {[%clk 0:01:44.6]} 21... h6 {[%clk 0:01:32.4]} 22. g3 {[%clk
0:01:43.6]} 22... Rf8 {[%clk 0:01:31.2]} 23. Kg2 {[%clk 0:01:44.1]} 23... Na7
{[%clk 0:01:29.6]} 24. Rxc8 {[%clk 0:01:42.5]} 24... Nxc8 {[%clk 0:01:30.5]} 25.
Qd3 {[%clk 0:01:41.7]} 25... b5 {[%clk 0:01:27.9]} 26. Nc5 {[%clk 0:01:41.2]}
26... Bxc5 {[%clk 0:01:28.3]} 27. bxc5 {[%clk 0:01:38.1]} 27... Na7 {[%clk
0:01:27.9]} 28. a4 {[%clk 0:01:37.3]} 28... Qa5 {[%clk 0:01:14.3]} 29. axb5
{[%clk 0:01:28.7]} 29... axb5 {[%clk 0:01:13.8]} 30. Qg6 {[%clk 0:01:25.8]}
30... Qa6 {[%clk 0:00:56.4]} 31. Nd3 {[%clk 0:01:17.3]} 31... Qa2+ {[%clk
0:00:24.4]} 32. Kh3 {[%clk 0:01:15.2]} 32... Rxf3 {[%clk 0:00:20.6]} 33. Qxe6+
{[%clk 0:01:14.8]} 33... Kh7 {[%clk 0:00:19.7]} 34. c6 {[%clk 0:00:50.7]} 34...
Qe2 {[%clk 0:00:18.9]} 35. c7 {[%clk 0:00:46.8]} 35... Rxd3 {[%clk 0:00:17.1]}
36. Qf5+ {[%clk 0:00:44.3]} 36... g6 {[%clk 0:00:16.8]} 37. Qxd3 {[%clk
0:00:44]} 37... g4+ {[%clk 0:00:16.1]} 38. Kh4 {[%clk 0:00:42.2]} 38... Qxd3
{[%clk 0:00:15.6]} 39. Rxd3 {[%clk 0:00:41.2]} 39... h5 {[%clk 0:00:14.4]} 40.
Kg5 {[%clk 0:00:40.1]} 40... Nc8 {[%clk 0:00:13.8]} 41. Kf6 {[%clk 0:00:36.3]}
41... b4 {[%clk 0:00:12.6]} 42. Ke6 {[%clk 0:00:35.9]} 1-0

[Event "*** Titled Tuesday Blitz"]
[Site "Chess.com"]
[Date "2020.12.29"]
[Round "5"]
[White "Moon_stone123"]
[Black "FMalexhdez"]
[Result "1-0"]
[WhiteElo "2439"]
[BlackElo "2271"]
[TimeControl "180+1"]
[EndTime "10:54:34 PST"]
[Termination "Moon_stone123 won by resignation"]

1. e4 {[%clk 0:03:00.9]} 1... c5 {[%clk 0:02:59.9]} 2. Nf3 {[%clk 0:03:00.6]}
2... d6 {[%clk 0:03:00.5]} 3. d4 {[%clk 0:03:00.9]} 3... cxd4 {[%clk 0:03:01.1]}
4. Nxd4 {[%clk 0:03:01.8]} 4... Nf6 {[%clk 0:03:01.1]} 5. Nc3 {[%clk 0:03:02.3]}
5... a6 {[%clk 0:03:01.6]} 6. h3 {[%clk 0:02:59.9]} 6... e5 {[%clk 0:03:01.6]}
7. Nb3 {[%clk 0:03:00.3]} 7... h5 {[%clk 0:03:01.7]} 8. Bg5 {[%clk 0:02:59.9]}
8... Be7 {[%clk 0:03:00.8]} 9. Qd2 {[%clk 0:02:59.5]} 9... Be6 {[%clk
0:02:58.2]} 10. g3 {[%clk 0:02:58.9]} 10... Nbd7 {[%clk 0:02:58.1]} 11. Bg2
{[%clk 0:02:58.7]} 11... Qc7 {[%clk 0:02:57.3]} 12. Rd1 {[%clk 0:02:56.3]} 12...
Rc8 {[%clk 0:02:55.8]} 13. O-O {[%clk 0:02:53.3]} 13... O-O {[%clk 0:02:54.9]}
14. Be3 {[%clk 0:02:35.3]} 14... b5 {[%clk 0:02:53.7]} 15. a3 {[%clk 0:02:32.1]}
15... Nb6 {[%clk 0:02:50.8]} 16. Bxb6 {[%clk 0:02:18.3]} 16... Qxb6 {[%clk
0:02:50.3]} 17. Nd5 {[%clk 0:02:18.8]} 17... Nxd5 {[%clk 0:02:48.3]} 18. exd5
{[%clk 0:02:19.7]} 18... Bf5 {[%clk 0:02:48.5]} 19. c3 {[%clk 0:02:06.4]} 19...
Bf6 {[%clk 0:02:45.3]} 20. Qe2 {[%clk 0:01:54]} 20... Bg6 {[%clk 0:02:28.8]} 21.
Be4 {[%clk 0:01:50.1]} 21... Bxe4 {[%clk 0:02:26.7]} 22. Qxe4 {[%clk 0:01:51]}
22... Bg5 {[%clk 0:02:18.2]} 23. Qf5 {[%clk 0:01:44.3]} 23... Qd8 {[%clk
0:02:03.5]} 24. h4 {[%clk 0:01:43.6]} 24... Bh6 {[%clk 0:02:00.7]} 25. Qxh5
{[%clk 0:01:42.9]} 25... f5 {[%clk 0:01:57.2]} 26. Kh2 {[%clk 0:01:33.7]} 26...
f4 {[%clk 0:01:47.4]} 27. Qg4 {[%clk 0:01:16.5]} 27... Rc4 {[%clk 0:01:37.8]}
28. Qe6+ {[%clk 0:01:09]} 28... Kh8 {[%clk 0:01:33.8]} 29. Nd2 {[%clk
0:00:36.8]} 29... Rc7 {[%clk 0:01:27.6]} 30. Ne4 {[%clk 0:00:34]} 30... Rd7
{[%clk 0:01:19.8]} 31. Kg2 {[%clk 0:00:33]} 31... f3+ {[%clk 0:01:14.4]} 32. Kg1
{[%clk 0:00:31.5]} 32... Kh7 {[%clk 0:00:56.3]} 33. Rd3 {[%clk 0:00:30.6]} 33...
g6 {[%clk 0:00:54.8]} 34. Qg4 {[%clk 0:00:29.9]} 34... Rdf7 {[%clk 0:00:53.4]}
35. Re1 {[%clk 0:00:29.2]} 35... a5 {[%clk 0:00:29.8]} 36. Qe6 {[%clk
0:00:27.6]} 36... Rd7 {[%clk 0:00:21.8]} 37. Red1 {[%clk 0:00:26.1]} 37... Kg7
{[%clk 0:00:21.4]} 38. Qg4 {[%clk 0:00:25.7]} 38... Rdf7 {[%clk 0:00:19.2]} 39.
h5 {[%clk 0:00:25.7]} 39... g5 {[%clk 0:00:15.9]} 40. Re1 {[%clk 0:00:22.9]}
40... Kh7 {[%clk 0:00:13.9]} 41. Qe6 {[%clk 0:00:22.7]} 41... Rd7 {[%clk
0:00:11.9]} 42. Qg6+ {[%clk 0:00:22.6]} 1-0

[Event "*** Titled Tuesday Blitz"]
[Site "Chess.com"]
[Date "2020.12.29"]
[Round "5"]
[White "HaryKane"]
[Black "IljaJoke"]
[Result "0-1"]
[WhiteElo "2662"]
[BlackElo "2473"]
[TimeControl "180+1"]
[EndTime "10:54:35 PST"]
[Termination "IljaJoke won by resignation"]

1. e4 {[%clk 0:03:00.9]} 1... e5 {[%clk 0:02:59.6]} 2. Nf3 {[%clk 0:03:00.7]}
2... Nc6 {[%clk 0:03:00]} 3. d4 {[%clk 0:03:01.3]} 3... exd4 {[%clk 0:03:00]} 4.
Bc4 {[%clk 0:03:02]} 4... Bc5 {[%clk 0:02:59.1]} 5. O-O {[%clk 0:03:00.5]} 5...
d6 {[%clk 0:02:55.9]} 6. b4 {[%clk 0:03:00.4]} 6... Bb6 {[%clk 0:02:46]} 7. a4
{[%clk 0:03:00.2]} 7... a5 {[%clk 0:02:44.7]} 8. b5 {[%clk 0:02:59.9]} 8... Ne5
{[%clk 0:02:44.8]} 9. Nxe5 {[%clk 0:02:58.8]} 9... dxe5 {[%clk 0:02:44.9]} 10.
Nd2 {[%clk 0:02:58.8]} 10... Ne7 {[%clk 0:02:35.6]} 11. Qh5 {[%clk 0:02:57.2]}
11... O-O {[%clk 0:02:33.1]} 12. Nf3 {[%clk 0:02:53.2]} 12... Be6 {[%clk
0:01:24.6]} 13. Ng5 {[%clk 0:02:42]} 13... h6 {[%clk 0:01:23.5]} 14. Nxe6 {[%clk
0:02:26.7]} 14... fxe6 {[%clk 0:01:22.1]} 15. Bxe6+ {[%clk 0:02:27.3]} 15... Kh7
{[%clk 0:01:19.1]} 16. Qxe5 {[%clk 0:02:23.8]} 16... Ng6 {[%clk 0:01:17.6]} 17.
Bf5 {[%clk 0:02:20.1]} 17... Qf6 {[%clk 0:01:15.3]} 18. Qg3 {[%clk 0:02:15.1]}
18... Rad8 {[%clk 0:00:55.6]} 19. Bb2 {[%clk 0:01:40.6]} 19... Bc5 {[%clk
0:00:49.7]} 20. Rad1 {[%clk 0:01:37.8]} 20... Rd6 {[%clk 0:00:43.2]} 21. Rd3
{[%clk 0:01:23.5]} 21... Kh8 {[%clk 0:00:38.9]} 22. f4 {[%clk 0:01:19]} 22...
Ne7 {[%clk 0:00:34.9]} 23. Bh3 {[%clk 0:01:10.8]} 23... Rdd8 {[%clk 0:00:25.9]}
24. e5 {[%clk 0:01:06.8]} 24... Qf7 {[%clk 0:00:26.1]} 25. f5 {[%clk 0:01:06]}
25... Nd5 {[%clk 0:00:25.5]} 26. Bxd4 {[%clk 0:00:57.3]} 26... Bxd4+ {[%clk
0:00:25.4]} 27. Rxd4 {[%clk 0:00:58.2]} 27... Qe7 {[%clk 0:00:24]} 28. Rfd1
{[%clk 0:00:39.5]} 28... Nb4 {[%clk 0:00:18.8]} 29. c3 {[%clk 0:00:34.4]} 29...
Nc2 {[%clk 0:00:16.6]} 30. Rxd8 {[%clk 0:00:33.2]} 30... Rxd8 {[%clk 0:00:17.5]}
31. Rxd8+ {[%clk 0:00:29.6]} 31... Qxd8 {[%clk 0:00:18.4]} 32. Bg4 {[%clk
0:00:25.7]} 32... Qd2 {[%clk 0:00:16.9]} 33. h3 {[%clk 0:00:23.1]} 33... Ne3
{[%clk 0:00:14.3]} 34. e6 {[%clk 0:00:20.6]} 34... Nd5 {[%clk 0:00:13.4]} 35.
Bf3 {[%clk 0:00:18.3]} 35... Qxc3 {[%clk 0:00:11]} 36. Qe5 {[%clk 0:00:16.3]}
36... Qxe5 {[%clk 0:00:09.5]} 0-1